fUST/lending_fUST_20241221
["ID","MTS","AMOUNT","RATE_DAILY","PERIOD"]
[346151892,1734756565016,-476.07667,0.000194,2]
[346151893,1734756565038,-151.0,0.00019448,2]
[346151894,1734756565059,-166.404295,0.00019451,2]
[346151895,1734756565079,-4495.38,0.00019451,2]
[346151896,1734756565099,-4495.38,0.00019451,2]
[346151897,1734756565118,-4495.38,0.00019451,2]
[346151898,1734756565138,-4495.38,0.00019451,2]
[346151899,1734756565158,-4495.38,0.00019451,2]
[346151900,1734756565177,-4495.38,0.00019451,2]
[346151901,1734756565196,-4495.38,0.00019451,2]
[346151902,1734756565216,-4495.38,0.00019451,2]
[346151903,1734756565236,-4495.38,0.00019451,2]
[346151904,1734756565255,-1003.25579639,0.00019451,2]
[346151916,1734756632907,-165.029,0.0001873,2]
[346151919,1734756632917,-300.0,0.00019177,2]
[346151922,1734756632927,-160.713346,0.00019178,2]
[346151925,1734756632936,-160.713346,0.00019178,2]
[346151928,1734756632946,-160.713346,0.00019178,2]
[346151930,1734756632955,-160.713346,0.00019178,2]
[346151932,1734756632965,-160.713346,0.00019178,2]
[346151934,1734756632974,-160.713346,0.00019178,2]
[346151936,1734756632989,-160.713346,0.00019178,2]
[346151938,1734756632999,-160.713346,0.00019178,2]
[346151940,1734756633008,-160.713346,0.00019178,2]
[346151942,1734756633018,-160.713343,0.00019178,2]
[346151944,1734756633030,-1066.34567827,0.00019178,2]
[346152010,1734756638898,-18.03386383,0.00019178,2]
[346152310,1734756643814,-399.9404579,0.00019178,2]
[346152311,1734756643824,-500.0,0.00019178,2]
[346152312,1734756643834,-3572.95,0.00019178,2]
[346152313,1734756643843,-151.0,0.00019178,2]
[346152314,1734756643854,-151.0,0.00019178,2]
[346152315,1734756643863,-500.0,0.00019178,2]
[346152316,1734756643873,-151.0,0.00019178,2]
[346152317,1734756643882,-151.0,0.00019178,2]
[346152318,1734756643893,-527.7416515,0.00019178,2]
[346152319,1734756643902,-151.0,0.00019178,2]
[346152320,1734756643911,-151.0,0.00019178,2]
[346152321,1734756643921,-151.0,0.00019178,2]
[346152322,1734756643931,-841.78,0.00019178,2]
[346152323,1734756643942,-151.0,0.00019178,2]
[346152324,1734756643953,-151.0,0.00019178,2]
[346152325,1734756643962,-500.0,0.00019178,2]
[346152326,1734756643971,-151.0,0.00019178,2]
[346152327,1734756643984,-151.0,0.00019178,2]
[346152328,1734756643993,-151.0,0.00019178,2]
[346152329,1734756644003,-500.0,0.00019178,2]
[346152330,1734756644013,-151.0,0.00019178,2]
[346152331,1734756644023,-21064.95,0.00019178,2]
[346152332,1734756644033,-3800.87,0.00019178,2]
[346152333,1734756644042,-151.0,0.00019178,2]
[346152334,1734756644052,-500.0,0.00019178,2]
[346152335,1734756644061,-151.0,0.00019178,2]
[346152336,1734756644071,-151.0,0.00019178,2]
[346152337,1734756644080,-3379.07,0.00019178,2]
[346152338,1734756644090,-151.0,0.00019178,2]
[346152339,1734756644099,-151.0,0.00019178,2]
[346152340,1734756644109,-151.0,0.00019178,2]
[346152341,1734756644118,-500.0,0.00019178,2]
[346152342,1734756644128,-500.0,0.00019178,2]
[346152343,1734756644138,-500.0,0.00019178,2]
[346152344,1734756644151,-270.881832,0.00019178,2]
[346152345,1734756644161,-200.45828651,0.00019178,2]
[346152346,1734756644171,-500.0,0.00019178,2]
[346152347,1734756644181,-1269.35,0.00019178,2]
[346152348,1734756644190,-84.38531326,0.00019178,2]
[346152357,1734756646923,-50.67914939,0.00019178,2]
[346152359,1734757154926,157.965618,0.00013973,2]
[346152361,1734757322878,349.11,0.00017252,2]
[346152363,1734757540132,-888.02168418,0.00018057,2]
[346152364,1734757551090,-2394.08245052,0.00018057,2]
[346152365,1734757551112,-500.0,0.00018247,2]
[346152366,1734757551134,-178.501,0.0001873,2]
[346152367,1734757551155,-154.432,0.00018794,2]
[346152368,1734757551176,-201.65742765,0.00018794,2]
[346152369,1734757551196,-300.0,0.00019075,2]
[346152370,1734757551216,-18.0424854,0.00019075,2]
[346152371,1734757625114,-7617.7295612,0.00019001,2]
[346152372,1734757625140,-175.47497563,0.00019078,2]
[346152373,1734757625169,-666.0,0.00019078,2]
[346152374,1734757625196,-300.0,0.00019177,2]
[346152375,1734757625220,-500.0,0.00019178,2]
[346152376,1734757625243,-500.0,0.00019178,2]
[346152377,1734757625266,-500.0,0.00019178,2]
[346152378,1734757625292,-500.0,0.00019178,2]
[346152379,1734757625316,-500.0,0.00019178,2]
[346152380,1734757625337,-500.0,0.00019178,2]
[346152381,1734757625362,-500.0,0.00019178,2]
[346152382,1734757625384,-500.0,0.00019178,2]
[346152383,1734757625410,-435.60993286,0.00019178,2]
[346152384,1734757625432,-500.0,0.00019178,2]
[346152385,1734757625453,-500.0,0.00019178,2]
[346152386,1734757625474,-501.43022538,0.00019178,2]
[346152387,1734757625495,-500.0,0.00019178,2]
[346152388,1734757625517,-500.0,0.00019178,2]
[346152389,1734757625538,-500.0,0.00019178,2]
[346152390,1734757625559,-500.0,0.00019178,2]
[346152391,1734757625580,-500.0,0.00019178,2]
[346152392,1734757625600,-501.90749026,0.00019178,2]
[346152393,1734757625622,-500.0,0.00019178,2]
[346152394,1734757625643,-500.0,0.00019178,2]
[346152395,1734757625666,-500.0,0.00019178,2]
[346152396,1734757625688,-500.0,0.00019178,2]
[346152397,1734757625710,-616.79,0.00019178,2]
[346152398,1734757625731,-500.0,0.00019178,2]
[346152399,1734757625755,-500.0,0.00019178,2]
[346152400,1734757625776,-500.0,0.00019178,2]
[346152401,1734757625798,-500.0,0.00019178,2]
[346152402,1734757625819,-500.75101578,0.00019178,2]
[346152403,1734757625840,-929.32,0.00019178,2]
[346152404,1734757625861,-500.0,0.00019178,2]
[346152405,1734757625885,-500.0,0.00019178,2]
[346152406,1734757625908,-510.83752959,0.00019178,2]
[346152407,1734757625931,-500.0,0.00019178,2]
[346152408,1734757625954,-1215.7,0.00019178,2]
[346152409,1734757625975,-500.0,0.00019178,2]
[346152410,1734757625996,-500.0,0.00019178,2]
[346152411,1734757626017,-500.0,0.00019178,2]
[346152412,1734757626038,-500.0,0.00019178,2]
[346152413,1734757626059,-355.2134564,0.00019178,2]
[346152414,1734757626081,-500.0,0.00019178,2]
[346152415,1734757626103,-500.0,0.00019178,2]
[346152416,1734757626124,-500.0,0.00019178,2]
[346152417,1734757626147,-501.21485167,0.00019178,2]
[346152418,1734757626171,-1248.69,0.00019178,2]
[346152419,1734757626193,-500.0,0.00019178,2]
[346152420,1734757626215,-500.82091988,0.00019178,2]
[346152421,1734757626237,-500.0,0.00019178,2]
[346152422,1734757626262,-151.0,0.00019178,2]
[346152423,1734757626284,-500.0,0.00019178,2]
[346152424,1734757626308,-151.0,0.00019178,2]
[346152425,1734757626330,-151.0,0.00019178,2]
[346152426,1734757626353,-175.696612,0.00019178,2]
[346152427,1734757626375,-500.0,0.00019178,2]
[346152428,1734757626397,-1000.0,0.00019178,2]
[346152429,1734757626422,-500.0,0.00019178,2]
[346152430,1734757626445,-184.55614181,0.00019178,2]
[346152431,1734757626466,-500.0,0.00019178,2]
[346152432,1734757626489,-258.07916755,0.00019178,2]
[346152433,1734757626512,-500.0,0.00019178,2]
[346152434,1734757626535,-500.0,0.00019178,2]
[346152435,1734757626558,-500.0,0.00019178,2]
[346152436,1734757626580,-500.0,0.00019178,2]
[346152437,1734757626603,-500.0,0.00019178,2]
[346152438,1734757626625,-689.99,0.00019178,2]
[346152439,1734757626647,-500.0,0.00019178,2]
[346152440,1734757626671,-500.0,0.00019178,2]
[346152441,1734757626693,-151.0,0.00019178,2]
[346152442,1734757626714,-517.4339022,0.00019178,2]
[346152443,1734757626735,-152.506018,0.00019178,2]
[346152444,1734757626757,-500.0,0.00019178,2]
[346152445,1734757626778,-537.55,0.00019178,2]
[346152446,1734757626800,-500.0,0.00019178,2]
[346152447,1734757626823,-500.0,0.00019178,2]
[346152448,1734757626844,-500.0,0.00019178,2]
[346152449,1734757626865,-501.42492149,0.00019178,2]
[346152450,1734757626888,-500.0,0.00019178,2]
[346152451,1734757626911,-496.65099492,0.00019178,2]
[346152452,1734757626935,-618.29,0.00019178,2]
[346152453,1734757626956,-500.0,0.00019178,2]
[346152454,1734757626979,-656.99,0.00019178,2]
[346152455,1734757627001,-500.0,0.00019178,2]
[346152456,1734757627023,-500.0,0.00019178,2]
[346152457,1734757627045,-522.02,0.00019178,2]
[346152458,1734757627067,-500.0,0.00019178,2]
[346152459,1734757627089,-500.0,0.00019178,2]
[346152460,1734757627110,-500.0,0.00019178,2]
[346152461,1734757627132,-500.0,0.00019178,2]
[346152462,1734757627153,-255.04562945,0.00019178,2]
[346152463,1734757627175,-151.0,0.00019178,2]
[346152464,1734757627196,-151.0,0.00019178,2]
[346152465,1734757627218,-151.0,0.00019178,2]
[346152466,1734757627239,-210.197666,0.00019178,2]
[346152467,1734757627261,-1038.24,0.00019178,2]
[346152468,1734757627285,-500.0,0.00019178,2]
[346152469,1734757627307,-501.38230805,0.00019178,2]
[346152470,1734757627327,-502.81889665,0.00019178,2]
[346152471,1734757627351,-500.0,0.00019178,2]
[346152472,1734757627374,-500.0,0.00019178,2]
[346152473,1734757627396,-500.0,0.00019178,2]
[346152474,1734757627421,-500.0,0.00019178,2]
[346152475,1734757627445,-500.0,0.00019178,2]
[346152476,1734757627467,-500.0,0.00019178,2]
[346152477,1734757627490,-500.0,0.00019178,2]
[346152478,1734757627512,-500.0,0.00019178,2]
[346152479,1734757627535,-151.46381,0.00019178,2]
[346152480,1734757627557,-500.0,0.00019178,2]
[346152481,1734757627578,-500.0,0.00019178,2]
[346152482,1734757627599,-500.78196162,0.00019178,2]
[346152483,1734757627620,-500.0,0.00019178,2]
[346152484,1734757627641,-502.97083055,0.00019178,2]
[346152485,1734757627664,-500.0,0.00019178,2]
[346152486,1734757627686,-500.0,0.00019178,2]
[346152487,1734757627711,-500.0,0.00019178,2]
[346152488,1734757627733,-500.0,0.00019178,2]
[346152489,1734757627754,-609.77901235,0.00019178,2]
[346152490,1734757627775,-500.0,0.00019178,2]
[346152491,1734757627797,-500.0,0.00019178,2]
[346152492,1734757627818,-556.75509054,0.00019178,2]
[346152493,1734757627840,-640.04785315,0.00019178,2]
[346152494,1734757627861,-500.0,0.00019178,2]
[346152495,1734757627884,-500.0,0.00019178,2]
[346152496,1734757627906,-500.0,0.00019178,2]
[346152497,1734757627927,-500.0,0.00019178,2]
[346152498,1734757627948,-500.0,0.00019178,2]
[346152499,1734757627969,-500.0,0.00019178,2]
[346152500,1734757627990,-501.78458009,0.00019178,2]
[346152501,1734757628012,-501.61656016,0.00019178,2]
[346152502,1734757628207,-500.0,0.00019178,2]
[346152503,1734757628232,-522.31,0.00019178,2]
[346152504,1734757628255,-500.0,0.00019178,2]
[346152505,1734757628282,-500.0,0.00019178,2]
[346152506,1734757628303,-501.25770061,0.00019178,2]
[346152507,1734757628325,-500.0,0.00019178,2]
[346152508,1734757628346,-500.0,0.00019178,2]
[346152509,1734757628368,-500.0,0.00019178,2]
[346152510,1734757628389,-500.0,0.00019178,2]
[346152511,1734757628412,-500.0,0.00019178,2]
[346152512,1734757628436,-500.0,0.00019178,2]
[346152513,1734757628458,-690.66,0.00019178,2]
[346152514,1734757628479,-534.63282983,0.00019178,2]
[346152515,1734757628501,-500.0,0.00019178,2]
[346152516,1734757628523,-500.0,0.00019178,2]
[346152517,1734757628545,-504.47881299,0.00019178,2]
[346152518,1734757628567,-500.0,0.00019178,2]
[346152519,1734757628589,-500.0,0.00019178,2]
[346152520,1734757628611,-1634.54,0.00019178,2]
[346152521,1734757628634,-500.0,0.00019178,2]
[346152522,1734757628657,-500.0,0.00019178,2]
[346152523,1734757628679,-500.0,0.00019178,2]
[346152524,1734757628702,-500.0,0.00019178,2]
[346152525,1734757628724,-500.0,0.00019178,2]
[346152526,1734757628746,-500.0,0.00019178,2]
[346152527,1734757628770,-500.0,0.00019178,2]
[346152528,1734757628791,-601.80954938,0.00019178,2]
[346152529,1734757628812,-500.0,0.00019178,2]
[346152530,1734757628834,-1946.2,0.00019178,2]
[346152531,1734757628860,-500.0,0.00019178,2]
[346152532,1734757628884,-500.0,0.00019178,2]
[346152533,1734757628907,-500.0,0.00019178,2]
[346152534,1734757628930,-500.0,0.00019178,2]
[346152535,1734757628952,-167.58874608,0.00019178,2]
[346152536,1734757628976,-500.0,0.00019178,2]
[346152537,1734757628999,-500.0,0.00019178,2]
[346152538,1734757629022,-500.0,0.00019178,2]
[346152539,1734757629045,-1542.88,0.00019178,2]
[346152540,1734757629067,-500.0,0.00019178,2]
[346152541,1734757629090,-500.0,0.00019178,2]
[346152542,1734757629118,-500.0,0.00019178,2]
[346152543,1734757629139,-625.93009109,0.00019178,2]
[346152544,1734757629163,-500.0,0.00019178,2]
[346152545,1734757629184,-500.0,0.00019178,2]
[346152546,1734757629206,-570.73,0.00019178,2]
[346152547,1734757629228,-702.17,0.00019178,2]
[346152548,1734757629250,-500.0,0.00019178,2]
[346152549,1734757629275,-730.82,0.00019178,2]
[346152550,1734757629297,-555.42,0.00019178,2]
[346152551,1734757629320,-500.0,0.00019178,2]
[346152552,1734757629343,-1906.05,0.00019178,2]
[346152553,1734757629370,-500.0,0.00019178,2]
[346152554,1734757629392,-500.0,0.00019178,2]
[346152555,1734757629417,-500.0,0.00019178,2]
[346152556,1734757629440,-500.0,0.00019178,2]
[346152557,1734757629462,-500.0,0.00019178,2]
[346152558,1734757629484,-500.0,0.00019178,2]
[346152559,1734757629506,-2247.35,0.00019178,2]
[346152560,1734757629528,-500.0,0.00019178,2]
[346152561,1734757629550,-2253.86,0.00019178,2]
[346152562,1734757629573,-500.0,0.00019178,2]
[346152563,1734757629596,-2036.69,0.00019178,2]
[346152564,1734757629619,-500.0,0.00019178,2]
[346152565,1734757629644,-500.0,0.00019178,2]
[346152566,1734757629668,-500.0,0.00019178,2]
[346152567,1734757629690,-1561.93,0.00019178,2]
[346152568,1734757629713,-500.0,0.00019178,2]
[346152569,1734757629735,-500.0,0.00019178,2]
[346152570,1734757629759,-500.0,0.00019178,2]
[346152571,1734757629781,-500.0,0.00019178,2]
[346152572,1734757629804,-500.0,0.00019178,2]
[346152573,1734757629826,-500.0,0.00019178,2]
[346152574,1734757629847,-500.0,0.00019178,2]
[346152575,1734757629868,-500.0,0.00019178,2]
[346152576,1734757629891,-500.0,0.00019178,2]
[346152577,1734757629913,-500.0,0.00019178,2]
[346152578,1734757629935,-500.0,0.00019178,2]
[346152579,1734757629956,-500.0,0.00019178,2]
[346152580,1734757629977,-2594.54,0.00019178,2]
[346152581,1734757629998,-500.0,0.00019178,2]
[346152582,1734757630019,-603.19342979,0.00019178,2]
[346152583,1734757630040,-500.0,0.00019178,2]
[346152584,1734757630061,-755.93,0.00019178,2]
[346152585,1734757630083,-514.46007709,0.00019178,2]
[346152586,1734757630104,-2732.13,0.00019178,2]
[346152587,1734757630127,-500.0,0.00019178,2]
[346152588,1734757630149,-500.0,0.00019178,2]
[346152589,1734757630173,-811.09,0.00019178,2]
[346152590,1734757630195,-500.0,0.00019178,2]
[346152591,1734757630218,-500.0,0.00019178,2]
[346152592,1734757630239,-193.28687725,0.00019178,2]
[346152593,1734757630262,-831.83,0.00019178,2]
[346152594,1734757630286,-500.0,0.00019178,2]
[346152595,1734757630308,-1018.49,0.00019178,2]
[346152596,1734757630331,-500.0,0.00019178,2]
[346152597,1734757630353,-500.0,0.00019178,2]
[346152598,1734757630380,-500.0,0.00019178,2]
[346152599,1734757630403,-500.0,0.00019178,2]
[346152600,1734757630427,-1126.76,0.00019178,2]
[346152601,1734757630449,-500.0,0.00019178,2]
[346152602,1734757630472,-500.0,0.00019178,2]
[346152603,1734757630494,-500.0,0.00019178,2]
[346152604,1734757630516,-500.0,0.00019178,2]
[346152605,1734757630538,-806.71,0.00019178,2]
[346152606,1734757630561,-796.17,0.00019178,2]
[346152607,1734757630583,-500.0,0.00019178,2]
[346152608,1734757630607,-502.0982632,0.00019178,2]
[346152609,1734757630629,-427.87977021,0.00019178,2]
[346152610,1734757630650,-500.0,0.00019178,2]
[346152611,1734757630675,-2290.18,0.00019178,2]
[346152612,1734757630696,-1422.47,0.00019178,2]
[346152613,1734757630718,-500.0,0.00019178,2]
[346152614,1734757630740,-500.0,0.00019178,2]
[346152615,1734757630761,-500.0,0.00019178,2]
[346152616,1734757630784,-500.0,0.00019178,2]
[346152617,1734757630807,-353.82361848,0.00019178,2]
[346152618,1734757630828,-501.11294032,0.00019178,2]
[346152619,1734757630850,-572.96,0.00019178,2]
[346152620,1734757630872,-500.0,0.00019178,2]
[346152621,1734757630894,-500.0,0.00019178,2]
[346152622,1734757630917,-565.1,0.00019178,2]
[346152623,1734757630939,-500.0,0.00019178,2]
[346152624,1734757630960,-856.5,0.00019178,2]
[346152625,1734757630981,-1315.78,0.00019178,2]
[346152626,1734757631002,-500.0,0.00019178,2]
[346152627,1734757631023,-500.96674957,0.00019178,2]
[346152628,1734757631043,-500.0,0.00019178,2]
[346152629,1734757631064,-455.46566295,0.00019178,2]
[346152630,1734757631084,-500.0,0.00019178,2]
[346152631,1734757631110,-151.0,0.00019178,2]
[346152632,1734757631132,-588.9,0.00019178,2]
[346152633,1734757631153,-500.0,0.00019178,2]
[346152634,1734757631177,-500.0,0.00019178,2]
[346152635,1734757631199,-500.0,0.00019178,2]
[346152636,1734757631221,-500.0,0.00019178,2]
[346152637,1734757631243,-500.0,0.00019178,2]
[346152638,1734757631264,-500.0,0.00019178,2]
[346152639,1734757631288,-500.0,0.00019178,2]
[346152640,1734757631312,-500.0,0.00019178,2]
[346152641,1734757631335,-963.36,0.00019178,2]
[346152642,1734757631358,-500.0,0.00019178,2]
[346152643,1734757631381,-583.18,0.00019178,2]
[346152644,1734757631403,-828.77,0.00019178,2]
[346152645,1734757631427,-500.0,0.00019178,2]
[346152646,1734757631451,-500.0,0.00019178,2]
[346152647,1734757631472,-891.08,0.00019178,2]
[346152648,1734757631494,-1694.07,0.00019178,2]
[346152649,1734757631515,-500.0,0.00019178,2]
[346152650,1734757631536,-501.320002,0.00019178,2]
[346152651,1734757631557,-259.22838164,0.00019178,2]
[346152652,1734757631579,-500.0,0.00019178,2]
[346152653,1734757631600,-27.87312772,0.00019178,2]
[346152654,1734757648141,-170.981,0.0001873,2]
[346152655,1734757648162,-472.12687228,0.00019178,2]
[346152656,1734757648186,-318.50268186,0.00019178,2]
[346152657,1734757716214,260.28,0.00017252,2]
[346152658,1734757746196,-1682.30699864,0.00018358,2]
[346152659,1734757746222,-565.3135152,0.00018543,2]
[346152660,1734757746249,-4.44646213,0.0001873,2]
[346152661,1734757757057,10000.0,0.00017252,2]
[346152662,1734757769098,-159.37553787,0.0001873,2]
[346152663,1734757769118,-752.96299167,0.00018901,2]
[346152664,1734757777910,10000.0,0.00017252,2]
[346152665,1734757792520,10000.0,0.00017252,2]
[346153196,1734757837879,-311.625264,0.00018901,2]
[346153198,1734757837889,-300.0,0.00019177,2]
[346153200,1734757837898,-165.0812834,0.00019177,2]
[346153261,1734757839879,-134.9187166,0.00019177,2]
[346153262,1734757839890,-181.49731814,0.00019178,2]
[346153263,1734757839899,-500.0,0.00019178,2]
[346153264,1734757839908,-500.0,0.00019178,2]
[346153265,1734757839917,-500.0,0.00019178,2]
[346153266,1734757839927,-502.2500983,0.00019178,2]
[346153267,1734757839936,-524.60430924,0.00019178,2]
[346153268,1734757839945,-500.0,0.00019178,2]
[346153269,1734757839956,-500.0,0.00019178,2]
[346153270,1734757839965,-500.0,0.00019178,2]
[346153271,1734757839976,-513.93,0.00019178,2]
[346153272,1734757839987,-500.0,0.00019178,2]
[346153273,1734757839997,-500.0,0.00019178,2]
[346153274,1734757840006,-500.0,0.00019178,2]
[346153275,1734757840016,-500.0,0.00019178,2]
[346153276,1734757840026,-657.91,0.00019178,2]
[346153277,1734757840036,-500.0,0.00019178,2]
[346153278,1734757840045,-569.02,0.00019178,2]
[346153279,1734757840055,-500.0,0.00019178,2]
[346153280,1734757840064,-500.0,0.00019178,2]
[346153281,1734757840073,-500.0,0.00019178,2]
[346153282,1734757840083,-500.0,0.00019178,2]
[346153283,1734757840093,-998.21,0.00019178,2]
[346153284,1734757840105,-500.0,0.00019178,2]
[346153285,1734757840115,-1430.52,0.00019178,2]
[346153286,1734757840125,-500.0,0.00019178,2]
[346153287,1734757840134,-500.0,0.00019178,2]
[346153288,1734757840144,-500.0,0.00019178,2]
[346153289,1734757840153,-500.0,0.00019178,2]
[346153290,1734757840163,-150.0,0.00019178,2]
[346153291,1734757840172,-763.6,0.00019178,2]
[346153292,1734757840182,-500.0,0.00019178,2]
[346153293,1734757840191,-500.0,0.00019178,2]
[346153294,1734757840201,-500.0,0.00019178,2]
[346153295,1734757840210,-500.0,0.00019178,2]
[346153296,1734757840220,-500.0,0.00019178,2]
[346153298,1734757840230,-645.37,0.00019178,2]
[346153300,1734757840240,-2160.08,0.00019178,2]
[346153302,1734757840249,-500.0,0.00019178,2]
[346153304,1734757840259,-1016.43,0.00019178,2]
[346153306,1734757840268,-4252.96,0.00019178,2]
[346153308,1734757840278,-500.0,0.00019178,2]
[346153310,1734757840288,-153.510729,0.00019178,2]
[346153312,1734757840297,-957.07,0.00019178,2]
[346153314,1734757840307,-500.0,0.00019178,2]
[346153316,1734757840317,-2243.75,0.00019178,2]
[346153318,1734757840334,-566.22,0.00019178,2]
[346153320,1734757840343,-500.0,0.00019178,2]
[346153322,1734757840353,-500.0,0.00019178,2]
[346153324,1734757840363,-500.0,0.00019178,2]
[346153326,1734757840373,-500.0,0.00019178,2]
[346153328,1734757840382,-500.0,0.00019178,2]
[346153330,1734757840392,-500.0,0.00019178,2]
[346153332,1734757840402,-500.0,0.00019178,2]
[346153334,1734757840411,-500.0,0.00019178,2]
[346153336,1734757840421,-500.0,0.00019178,2]
[346153338,1734757840431,-500.0,0.00019178,2]
[346153340,1734757840441,-872.86,0.00019178,2]
[346153342,1734757840450,-500.0,0.00019178,2]
[346153344,1734757840460,-1042.18,0.00019178,2]
[346153346,1734757840469,-500.0,0.00019178,2]
[346153348,1734757840478,-500.0,0.00019178,2]
[346153350,1734757840488,-500.0,0.00019178,2]
[346153351,1734757840498,-500.0,0.00019178,2]
[346153352,1734757840507,-500.0,0.00019178,2]
[346153353,1734757840517,-500.0,0.00019178,2]
[346153354,1734757840526,-510.38567199,0.00019178,2]
[346153355,1734757840536,-513.34961582,0.00019178,2]
[346153356,1734757840546,-500.0,0.00019178,2]
[346153357,1734757840557,-500.0,0.00019178,2]
[346153358,1734757840567,-500.0,0.00019178,2]
[346153359,1734757840576,-500.0,0.00019178,2]
[346153360,1734757840586,-902.61,0.00019178,2]
[346153361,1734757840595,-624.27781928,0.00019178,2]
[346153362,1734757840605,-500.0,0.00019178,2]
[346153363,1734757840614,-1163.35,0.00019178,2]
[346153364,1734757840623,-500.67388664,0.00019178,2]
[346153365,1734757840633,-500.0,0.00019178,2]
[346153366,1734757840642,-3874.99,0.00019178,2]
[346153367,1734757840652,-678.43,0.00019178,2]
[346153368,1734757840661,-500.0,0.00019178,2]
[346153369,1734757840670,-500.0,0.00019178,2]
[346153370,1734757840679,-151.0,0.00019178,2]
[346153371,1734757840689,-151.0,0.00019178,2]
[346153372,1734757840698,-151.0,0.00019178,2]
[346153373,1734757840707,-153.382199,0.00019178,2]
[346153374,1734757840716,-500.0,0.00019178,2]
[346153375,1734757840726,-500.0,0.00019178,2]
[346153376,1734757840735,-309.71768548,0.00019178,2]
[346153377,1734757840744,-500.0,0.00019178,2]
[346153378,1734757840753,-500.0,0.00019178,2]
[346153379,1734757840762,-151.807302,0.00019178,2]
[346153380,1734757840771,-500.0,0.00019178,2]
[346153381,1734757840781,-500.0,0.00019178,2]
[346153382,1734757840790,-500.0,0.00019178,2]
[346153383,1734757840799,-500.0,0.00019178,2]
[346153384,1734757840809,-500.0,0.00019178,2]
[346153385,1734757840818,-536.61,0.00019178,2]
[346153386,1734757840827,-500.0,0.00019178,2]
[346153387,1734757840835,-500.0,0.00019178,2]
[346153388,1734757840845,-500.0,0.00019178,2]
[346153389,1734757840854,-500.0,0.00019178,2]
[346153390,1734757840863,-648.25768715,0.00019178,2]
[346153391,1734757840872,-500.0,0.00019178,2]
[346153392,1734757840882,-500.0,0.00019178,2]
[346153393,1734757840891,-500.0,0.00019178,2]
[346153394,1734757840900,-500.0,0.00019178,2]
[346153395,1734757840909,-503.71490984,0.00019178,2]
[346153396,1734757840919,-500.0,0.00019178,2]
[346153397,1734757840927,-502.42057878,0.00019178,2]
[346153398,1734757840937,-506.68698578,0.00019178,2]
[346153399,1734757840947,-500.0,0.00019178,2]
[346153400,1734757840956,-500.0,0.00019178,2]
[346153401,1734757840966,-307.86433896,0.00019178,2]
[346153485,1734757843383,-99.22378318,0.00019178,2]
[346153487,1734757843393,-500.0,0.00019178,2]
[346153489,1734757843403,-500.0,0.00019178,2]
[346153491,1734757843413,-500.0,0.00019178,2]
[346153493,1734757843422,-504.85759585,0.00019178,2]
[346153495,1734757843431,-500.0,0.00019178,2]
[346153497,1734757843440,-500.0,0.00019178,2]
[346153499,1734757843450,-527.9,0.00019178,2]
[346153501,1734757843459,-507.3,0.00019178,2]
[346153503,1734757843469,-501.63093429,0.00019178,2]
[346153505,1734757843478,-510.05177286,0.00019178,2]